fUSD/lending_fUSD_20240526
["ID","MTS","AMOUNT","RATE_DAILY","PERIOD"]
[327956081,1716705041935,-1432.0,0.00027397,4]
[327956082,1716705041944,-500.0,0.00027397,4]
[327956083,1716705041953,-500.0,0.00027397,4]
[327956084,1716705041963,-500.0,0.00027397,4]
[327956085,1716705041972,-382.43191994,0.00027397,4]
[327956086,1716705041981,-333.81504071,0.00027397,4]
[327956087,1716705042105,-166.18495929,0.00027397,4]
[327956088,1716705042114,-625.11,0.00027397,4]
[327956089,1716705042124,-500.0,0.00027397,4]
[327956090,1716705042133,-500.0,0.00027397,4]
[327956091,1716705042142,-500.0,0.00027397,4]
[327956092,1716705042152,-500.0,0.00027397,4]
[327956093,1716705042160,-500.0,0.00027397,4]
[327956094,1716705042169,-2081.70535037,0.00027397,2]
[327956095,1716705042179,-581.99,0.00027397,4]
[327956096,1716705042188,-1178.93,0.00027397,4]
[327956097,1716705042197,-500.0,0.00027397,4]
[327956098,1716705042206,-500.0,0.00027397,4]
[327956099,1716705042215,-892.27,0.00027397,4]
[327956100,1716705042224,-500.0,0.00027397,4]
[327956101,1716705042233,-1306.63,0.00027397,4]
[327956102,1716705042242,-499.3493,0.00027397,2]
[327956103,1716705042251,-500.0,0.00027397,4]
[327956104,1716705042261,-199.77964,0.00027397,2]
[327956105,1716705042270,-500.0,0.00027397,4]
[327956106,1716705042279,-500.0,0.00027397,4]
[327956107,1716705042288,-793.46,0.00027397,4]
[327956108,1716705042298,-500.0,0.00027397,4]
[327956110,1716705042308,-500.0,0.00027397,4]
[327956111,1716705042317,-500.0,0.00027397,4]
[327956112,1716705042327,-500.0,0.00027397,4]
[327956113,1716705042337,-474.49930322,0.00027397,4]
[327956114,1716705042346,-540.44,0.00027397,4]
[327956115,1716705042356,-500.0,0.00027397,4]
[327956116,1716705042365,-500.0,0.00027397,4]
[327956117,1716705042375,-686.96,0.00027397,4]
[327956118,1716705042384,-1218.32,0.00027397,4]
[327956119,1716705042394,-558.72,0.00027397,4]
[327956120,1716705042404,-500.0,0.00027397,4]
[327956121,1716705042413,-500.0,0.00027397,4]
[327956122,1716705042422,-397.49220033,0.00027397,4]
[327956123,1716705042432,-1013.23,0.00027397,4]
[327956124,1716705042441,-542.62,0.00027397,4]
[327956125,1716705042450,-500.0,0.00027397,4]
[327956126,1716705042459,-500.0,0.00027397,4]
[327956127,1716705042468,-500.0,0.00027397,4]
[327956128,1716705042477,-500.0,0.00027397,4]
[327956129,1716705042486,-500.0,0.00027397,4]
[327956130,1716705042495,-1167.42,0.00027397,4]
[327956131,1716705042505,-797.41,0.00027397,4]
[327956132,1716705042514,-618.56,0.00027397,4]
[327956133,1716705042524,-500.0,0.00027397,4]
[327956134,1716705042534,-981.63,0.00027397,4]
[327956135,1716705042543,-500.0,0.00027397,4]
[327956136,1716705042552,-500.0,0.00027397,4]
[327956137,1716705042561,-542.66,0.00027397,4]
[327956138,1716705042570,-500.0,0.00027397,4]
[327956139,1716705042579,-500.0,0.00027397,4]
[327956140,1716705042588,-607.52038485,0.00027397,4]
[327956141,1716705042597,-657.77,0.00027397,4]
[327956142,1716705042606,-517.65072083,0.00027397,4]
[327956143,1716705042616,-500.0,0.00027397,4]
[327956144,1716705042625,-1188.21,0.00027397,4]
[327956145,1716705042634,-606.03,0.00027397,4]
[327956146,1716705042643,-597.64,0.00027397,4]
[327956147,1716705042652,-2120.09,0.00027397,4]
[327956148,1716705042661,-500.0,0.00027397,4]
[327956149,1716705042670,-500.0,0.00027397,4]
[327956150,1716705042680,-208.70972874,0.00027397,4]
[327956151,1716705042694,-291.29027126,0.00027397,4]
[327956152,1716705042702,-500.0,0.00027397,4]
[327956153,1716705042712,-572.33,0.00027397,4]
[327956154,1716705042720,-500.0,0.00027397,4]
[327956155,1716705042730,-518.34576203,0.00027397,4]
[327956156,1716705042738,-500.0,0.00027397,4]
[327956157,1716705042747,-500.0,0.00027397,4]
[327956158,1716705042756,-500.0,0.00027397,4]
[327956159,1716705042765,-500.0,0.00027397,4]
[327956160,1716705042774,-500.0,0.00027397,4]
[327956161,1716705042784,-504.79,0.00027397,4]
[327956162,1716705042793,-500.0,0.00027397,4]
[327956163,1716705042803,-561.19,0.00027397,4]
[327956164,1716705042812,-652.22,0.00027397,4]
[327956165,1716705042823,-698.07,0.00027397,4]
[327956166,1716705042832,-1231.34,0.00027397,4]
[327956167,1716705042842,-500.0,0.00027397,4]
[327956168,1716705042851,-500.0,0.00027397,4]
[327956169,1716705042860,-557.62,0.00027397,4]
[327956170,1716705042872,-500.0,0.00027397,4]
[327956171,1716705042882,-643.13,0.00027397,4]
[327956172,1716705042891,-531.32,0.00027397,4]
[327956173,1716705042901,-688.26,0.00027397,4]
[327956174,1716705042910,-500.0,0.00027397,4]
[327956175,1716705042919,-500.0,0.00027397,4]
[327956176,1716705042928,-508.8,0.00027397,4]
[327956177,1716705042937,-629.91084686,0.00027397,4]
[327956178,1716705042946,-779.36,0.00027397,4]
[327956179,1716705042956,-500.0,0.00027397,4]
[327956180,1716705042965,-500.0,0.00027397,4]
[327956181,1716705042974,-500.0,0.00027397,4]
[327956182,1716705042983,-837.69,0.00027397,4]
[327956183,1716705042992,-500.0,0.00027397,4]
[327956184,1716705043001,-500.0,0.00027397,4]
[327956185,1716705043010,-794.3,0.00027397,4]
[327956186,1716705043019,-1050.9,0.00027397,4]
[327956187,1716705043028,-500.0,0.00027397,4]
[327956188,1716705043038,-500.0,0.00027397,4]
[327956189,1716705043050,-500.0,0.00027397,4]
[327956190,1716705043060,-742.77,0.00027397,4]
[327956191,1716705043069,-503.44053253,0.00027397,4]
[327956192,1716705043078,-620.25,0.00027397,4]
[327956193,1716705043088,-570.75,0.00027397,4]
[327956194,1716705043097,-737.66,0.00027397,4]
[327956195,1716705043106,-521.31,0.00027397,4]
[327956196,1716705043115,-500.0,0.00027397,4]
[327956197,1716705043126,-500.0,0.00027397,4]
[327956198,1716705043135,-704.78,0.00027397,4]
[327956199,1716705043143,-529.3,0.00027397,4]
[327956200,1716705043152,-500.0,0.00027397,4]
[327956201,1716705043161,-621.12,0.00027397,4]
[327956202,1716705043170,-660.03,0.00027397,4]
[327956203,1716705043179,-500.0,0.00027397,4]
[327956204,1716705043189,-671.59,0.00027397,4]
[327956205,1716705043198,-500.0,0.00027397,4]
[327956206,1716705043207,-500.0,0.00027397,4]
[327956207,1716705043216,-500.0,0.00027397,4]
[327956208,1716705043225,-637.06,0.00027397,4]
[327956209,1716705043234,-500.0,0.00027397,4]
[327956210,1716705043243,-572.02,0.00027397,4]
[327956212,1716705043252,-1010.17,0.00027397,4]
[327956214,1716705043261,-901.25200139,0.00027397,4]
[327956217,1716705044432,-626.24799861,0.00027397,4]
[327956218,1716705044441,-617.33,0.00027397,4]
[327956219,1716705044451,-708.0229648,0.00027397,4]
[327956220,1716705044464,-169.7170352,0.00027397,4]
[327956221,1716705044474,-469.33234483,0.00027397,4]
[327956222,1716705044483,-500.0,0.00027397,4]
[327956223,1716705044493,-595.92584896,0.00027397,4]
[327956224,1716705044503,-500.0,0.00027397,4]
[327956225,1716705044512,-370.35544999,0.00027397,4]
[327956226,1716705044521,-394.66932102,0.00027397,4]
[327956227,1716705044534,-105.33067898,0.00027397,4]
[327956228,1716705044543,-592.1339727,0.00027397,4]
[327956229,1716705044555,-218.7160273,0.00027397,4]
[327956230,1716705044564,-640.86,0.00027397,4]
[327956231,1716705044574,-127.93280803,0.00027397,4]
[327956232,1716705044586,-180.50719197,0.00027397,4]
[327956233,1716705044595,-500.0,0.00027397,4]
[327956234,1716705044604,-150.13672336,0.00027397,4]
[327956235,1716705044616,-695.72327664,0.00027397,4]
[327956236,1716705044624,-846.71,0.00027397,4]
[327956237,1716705044633,-366.43052767,0.00027397,4]
[327956238,1716705044644,-133.56947233,0.00027397,4]
[327956239,1716705044653,-500.0,0.00027397,4]
[327956240,1716705044663,-576.69,0.00027397,4]
[327956241,1716705044672,-601.8,0.00027397,4]
[327956242,1716705044681,-500.0,0.00027397,4]
[327956243,1716705044691,-534.80668639,0.00027397,2]
[327956244,1716705044700,-592.85052107,0.00027397,4]
[327956245,1716705044709,-500.0,0.00027397,4]
[327956246,1716705044718,-466.3686584,0.00027397,4]
[327956247,1716705044742,-73.8313416,0.00027397,4]
[327956248,1716705044751,-418.78205182,0.00027397,4]
[327956249,1716705044882,-258.9657554,0.00025394,2]
[327956250,1716705044895,-343.1242446,0.00025394,2]
[327956251,1716705044905,-81.21794818,0.00027397,4]
[327956252,1716705044915,-500.0,0.00027397,4]
[327956253,1716705044924,-579.37,0.00027397,4]
[327956254,1716705044934,-936.21,0.00027397,4]
[327956255,1716705044944,-504.56,0.00027397,4]
[327956256,1716705044954,-592.61,0.00027397,4]
[327956257,1716705044964,-500.0,0.00027397,4]
[327956258,1716705044974,-39.99857696,0.00027397,4]
[327956259,1716705044986,-584.68142304,0.00027397,4]
[327956260,1716705044995,-617.19,0.00027397,4]
[327956261,1716705045005,-405.45878278,0.00027397,4]
[327956262,1716705045018,-147.01121722,0.00027397,4]
[327956263,1716705045028,-500.0,0.00027397,4]
[327956264,1716705045039,-1308.38,0.00027397,4]
[327956265,1716705045054,-500.0,0.00027397,4]
[327956266,1716705045065,-500.0,0.00027397,4]
[327956267,1716705045075,-500.0,0.00027397,4]
[327956268,1716705045087,-500.0,0.00027397,4]
[327956269,1716705045097,-4503.99,0.00027397,4]
[327956270,1716705045107,-515.45,0.00027397,4]
[327956271,1716705045117,-1154.08,0.00027397,4]
[327956272,1716705045130,-481.2632369,0.00027397,4]
[327956273,1716705045140,-746.42,0.00027397,4]
[327956274,1716705045152,-500.0,0.00027397,4]
[327956275,1716705045162,-500.0,0.00027397,4]
[327956276,1716705045172,-770.41,0.00027397,4]
[327956277,1716705045182,-2694.09,0.00027397,4]
[327956278,1716705045192,-500.0,0.00027397,4]
[327956279,1716705045202,-1051.55,0.00027397,4]
[327956280,1716705045212,-500.0,0.00027397,4]
[327956281,1716705045222,-1390.1,0.00027397,4]
[327956282,1716705045232,-500.0,0.00027397,4]
[327956283,1716705045242,-500.0,0.00027397,4]
[327956284,1716705045253,-15894.56,0.00027397,4]
[327956285,1716705045263,-500.0,0.00027397,4]
[327956286,1716705045273,-1247.3,0.00027397,4]
[327956287,1716705045283,-500.0,0.00027397,4]
[327956288,1716705045294,-1373.82,0.00027397,4]
[327956289,1716705045304,-3286.26,0.00027397,4]
[327956290,1716705045314,-684.01,0.00027397,4]
[327956291,1716705045324,-500.0,0.00027397,4]
[327956292,1716705045333,-500.0,0.00027397,4]
[327956293,1716705045343,-962.91,0.00027397,4]
[327956294,1716705045353,-500.0,0.00027397,4]
[327956295,1716705045363,-10891.71,0.00027397,4]
[327956296,1716705045373,-500.0,0.00027397,4]
[327956297,1716705045383,-1217.74,0.00027397,4]
[327956298,1716705045392,-500.0,0.00027397,4]
[327956299,1716705045402,-500.0,0.00027397,4]
[327956300,1716705045412,-780.8,0.00027397,4]
[327956301,1716705045422,-4199.99,0.00027397,4]
[327956302,1716705045432,-532.82,0.00027397,4]
[327956303,1716705045441,-1513.2,0.00027397,4]
[327956304,1716705045452,-500.0,0.00027397,4]
[327956305,1716705045462,-4458.96,0.00027397,4]
[327956306,1716705045472,-1001.5,0.00027397,4]
[327956307,1716705045482,-575.24,0.00027397,4]
[327956308,1716705045491,-500.0,0.00027397,4]
[327956309,1716705045501,-742.44,0.00027397,4]
[327956310,1716705045511,-500.0,0.00027397,4]
[327956311,1716705045521,-1299.69,0.00027397,4]
[327956312,1716705045531,-543.82810581,0.00027397,4]
[327956313,1716705045540,-852.27,0.00027397,4]
[327956314,1716705045550,-500.0,0.00027397,4]
[327956315,1716705045560,-909.0,0.00027397,4]
[327956316,1716705045569,-683.73,0.00027397,4]
[327956317,1716705045579,-500.0,0.00027397,4]
[327956318,1716705045588,-786.32,0.00027397,4]
[327956319,1716705045598,-500.0,0.00027397,4]
[327956320,1716705045607,-1813.62,0.00027397,4]
[327956321,1716705045617,-943.78,0.00027397,4]
[327956322,1716705045626,-500.0,0.00027397,4]
[327956323,1716705045636,-950.15,0.00027397,4]
[327956324,1716705045645,-500.0,0.00027397,4]
[327956325,1716705045655,-2228.08,0.00027397,4]
[327956326,1716705045664,-971.03,0.00027397,4]
[327956327,1716705045674,-500.0,0.00027397,4]
[327956328,1716705045683,-500.0,0.00027397,4]
[327956329,1716705045692,-500.0,0.00027397,4]
[327956330,1716705045702,-2932.49744032,0.00027397,4]
[327956331,1716705045715,-1423.50255968,0.00027397,4]
[327956332,1716705045724,-945.1,0.00027397,4]
[327956333,1716705045733,-1961.99370508,0.00027397,4]
[327956334,1716705045744,-408.57629492,0.00027397,4]
[327956335,1716705045753,-500.0,0.00027397,4]
[327956336,1716705045762,-68.34404708,0.00027397,4]
[327956337,1716705045774,-485.52595292,0.00027397,4]
[327956338,1716705045783,-377.51644553,0.00027397,4]
[327956339,1716705045794,-315.52355447,0.00027397,4]
[327956340,1716705045803,-1331.01809904,0.00027397,4]
[327956341,1716705045814,-547.46957672,0.00027397,4]
[327956342,1716705046663,-325.18870715,0.00017259,2]
[327956343,1716705046672,-234.48123736,0.00027396,2]
[327956344,1716705046682,-4220.89663136,0.00027397,2]
[327956345,1716705046691,-2447.14232424,0.00027397,4]
[327956346,1716705046700,-500.0,0.00027397,4]
[327956347,1716705046710,-500.0,0.00027397,4]
[327956348,1716705046720,-2477.91,0.00027397,4]
[327956349,1716705046730,-500.0,0.00027397,4]
[327956350,1716705046740,-500.0,0.00027397,4]
[327956351,1716705046749,-500.0,0.00027397,4]
[327956352,1716705046759,-500.0,0.00027397,4]
[327956353,1716705047063,-500.0,0.00027397,4]
[327956354,1716705047073,-766.18,0.00027397,4]
[327956355,1716705047083,-500.0,0.00027397,4]
[327956356,1716705047094,-676.04,0.00027397,4]
[327956357,1716705047103,-500.0,0.00027397,4]
[327956358,1716705047113,-986.21,0.00027397,4]
[327956359,1716705047123,-1725.29,0.00027397,4]
[327956360,1716705047132,-500.0,0.00027397,4]
[327956361,1716705047142,-2128.13607105,0.00027397,4]
[327956367,1716705767610,-155.0,9.981e-05,2]
[327956368,1716705767642,-516.84870749,9.982e-05,2]
[327956369,1716705767673,-210.49319076,9.983e-05,2]
[327956370,1716705767706,-541.55577053,9.984e-05,2]
[327956371,1716705767737,-155.49565988,0.0001,2]
[327956372,1716705767768,-252.68598435,0.00010992,2]
[327956373,1716705767800,-1867.88,0.00010993,2]
[327956374,1716705767835,-751.45358305,0.00011,2]
[327956375,1716705767865,-21489.75729798,0.000118,2]
[327956376,1716705767901,-623.0,0.000129,2]
[327956377,1716705767931,-2500.0,0.000129,2]
[327956378,1716705767962,-1756.27,0.000129,6]
[327956379,1716705767994,-150.68,0.0001299,2]
[327956380,1716705768025,-155.0,0.00012999,2]
[327956381,1716705779595,210.25967461,0.00012999,2]
[327956382,1716705783245,179.18905896,0.00012999,2]
[327956383,1716705784984,160.5123907,0.00012999,2]
[327956384,1716705785478,252.68598435,0.00012999,2]
[327956385,1716705789239,248.5848063,0.00012999,2]
[327956386,1716705815208,-365.57666904,0.00011699,2]
[327956387,1716705815248,-956.39580577,0.00012349,2]
[327956388,1716705815285,-233.19699311,0.00012869,2]
[327956389,1716705815464,-36889.66106416,0.00013,2]
[327956390,1716705817169,-40000.0,0.00013,2]
[327956391,1716705825702,-40000.0,0.00013,2]
[327956392,1716705827041,-40000.0,0.00013,2]
[327956393,1716705828249,-40000.0,0.00013,2]
[327956394,1716705853775,200.00000099,0.00031,120]
[327956412,1716706234727,-451.92492773,0.000129,2]
[327956413,1716706234852,-1205.94660605,0.000129,2]
[327956414,1716706234864,-784.32586622,0.000129,2]
[327956415,1716706234878,-29415.82826275,0.00013,2]
[327956416,1716706234890,-3223.14669934,0.00013,2]
[327956417,1716706234901,-722.06289551,0.00013,2]
[327956418,1716706234912,-28701.4958251,0.00013,2]
[327956419,1716706234925,-4574.59801111,0.00013,2]
[327956420,1716706234976,-624.91528117,0.00013,2]
[327956421,1716706234988,-24954.83073575,0.00013,2]
[327956422,1716706235000,-322.91174239,0.00013,2]
[327956423,1716706235095,-776.61022031,0.00013,2]
[327956441,1716706237560,-1003.64989593,0.00013,2]
[327956442,1716706237572,-990.24324723,0.00013,2]
[327956443,1716706237584,-1235.9041344,0.00013,2]
[327956444,1716706237662,-1506.07039223,0.00013,2]
[327956445,1716706237767,-370.68004683,0.00013,2]
[327956446,1716706237883,-8055.34788,0.00013,2]
[327956449,1716706240787,-1372.44874178,0.00013,2]
[327956450,1716706240798,-540.39,0.00013,2]
[327956451,1716706241031,-3708.50144996,0.00013,2]
[327956452,1716706241043,-897.93874911,0.00013,2]
[327956453,1716706242154,-2560.0,0.00013,2]
[327956465,1716706242719,-3456.52608022,0.00013,2]
[327956466,1716706242731,-259.03462014,0.00013,2]
[327956467,1716706242828,-320.89039207,0.00013,2]
[327956468,1716706242945,-619.10457442,0.00013,2]
[327956469,1716706243824,-1157.93379209,0.00013,2]
[327956470,1716706243837,-2176.44222784,0.00013,2]
[327956472,1716706245780,-104864.36015549,0.00013,2]
[327956473,1716706245792,-978.296,0.00013,2]
[327956474,1716706245854,-655.20000404,0.00013,2]
[327956475,1716706245866,-1865.0,0.00013,2]
[327956476,1716706245878,-996.53600001,0.00013,2]
[327956477,1716706245890,-1838.86160494,0.00013,2]
[327956478,1716706246038,-7121.5,0.00013,2]
[327956479,1716706246050,-36924.99999904,0.00013,2]
[327956480,1716706446641,-155.0,0.00012347,2]
[327956481,1716706446663,-1299.11942176,0.00012347,2]
[327956482,1716706446686,-19512.71640385,0.00012349,2]
[327956483,1716706446707,-956.39580577,0.0001235,2]
[327956484,1716706446729,-2606.75150095,0.0001274,2]
[327956485,1716706446751,-7066.52057408,0.00012898,2]
[327956486,1716706446774,-1140.8114,0.000129,2]
[327956487,1716706446796,-16883.4515,0.000129,2]
[327956488,1716706446817,-75043.0483,0.000129,2]
[327956489,1716706446840,-62383.5861,0.000129,2]
[327956490,1716706446861,-500.0,0.000129,2]
[327956491,1716706446883,-6532.3159,0.000129,2]
[327956492,1716706446905,-168.96300013,0.000129,2]
[327956493,1716706446927,-167.08175585,0.000129,2]
[327956494,1716706446948,-155.0,0.00012999,2]
[327956495,1716706446974,-210.44648753,0.00012999,2]
[327956496,1716706447000,-1805218.79185008,0.00013,2]
[327956497,1716706552334,-322.07738525,0.00012344,2]
[327956498,1716706552356,-1299.11942176,0.00012344,2]
[327956499,1716706552378,-644.06681603,0.00012344,2]
[327956500,1716706569836,-5000.0,0.00012345,2]
[327956501,1716706575766,-5000.0,0.00012345,2]
[327956502,1716706582378,-2734.73637696,0.00012345,2]
[327956503,1716706588338,-5000.0,0.00012345,2]
[327956504,1716706600257,567.47,0.00012999,6]
[327956505,1716706622954,-4000.0,0.00012345,2]
[327956506,1716706623541,-4000.0,0.00012345,2]
[327956507,1716706624165,-4000.0,0.00012345,2]
[327956508,1716706625046,-4000.0,0.00012345,2]
[327956509,1716707291862,-1000.0,0.00012097,2]
[327956510,1716707291882,-2606.75150095,0.00012098,2]
[327956511,1716707291901,-200.0,0.00012283,2]
[327956512,1716707309803,2606.75150095,0.00012098,2]
[327956513,1716707331733,1075.4969981,0.00012098,2]
[327956514,1716707431988,-19743.29045707,0.00012098,2]
[327956515,1716707431997,-1531.25450285,0.00012098,2]
[327956516,1716707432007,-250.0,0.00012316,2]
[327956517,1716707432016,-896.24699459,0.00012348,2]
[327956518,1716707432025,-660.64267116,0.0001235,2]
[327956519,1716707432035,-2996.33,0.0001237,2]
[327956520,1716707432044,-16082.83302014,0.00012518,2]
[327956521,1716707432056,-7817.16697986,0.00012518,2]
[327956522,1716707432065,-1000.0,0.00012553,2]
[327956523,1716707432074,-500.0,0.00012683,2]
[327956524,1716707432083,-3058.14,0.00012683,2]
[327956525,1716707432092,-1664.95,0.00012683,2]
[327956526,1716707432102,-1000.0,0.00012798,2]
[327956527,1716707432112,-2904.45658539,0.00012799,2]
[327956528,1716707432121,-163.8,0.00012799,2]
[327956529,1716707432131,-150.99,0.00012799,2]
[327956530,1716707432140,-366.73,0.00012799,2]
[327956531,1716707432150,-150.99,0.00012799,2]
[327956532,1716707432160,-2109.28,0.00012799,2]
[327956533,1716707432169,-5379.74,0.00012799,2]
[327956534,1716707432178,-1164.47,0.00012799,2]
[327956535,1716707432187,-5580.3,0.00012799,2]
[327956536,1716707432197,-26704.81359295,0.000128,2]
[327956537,1716707432375,-2025.59405055,0.000128,2]
[327956538,1716707432388,-2796.90567683,0.000128,2]
[327956539,1716707432400,-3686.62574935,0.000128,2]
[327956540,1716707432472,-2.16268075,0.000128,2]
[327956541,1716707432483,-1103.85248,0.000128,2]
[327956542,1716707432614,-21.0499406,0.000128,2]
[327956543,1716707432628,-2869.59602897,0.000128,2]
[327956544,1716707432638,-1000.0,0.000128,2]
[327956545,1716707432648,-6913.5928,0.000128,2]
[327956546,1716707432658,-250.0,0.00012854,2]
[327956547,1716707432668,-7166.04257102,0.0001287,2]
[327956548,1716707432678,-500.0,0.000129,2]
[327956549,1716707432688,-46671.01,0.000129,2]
[327956550,1716707432697,-9999.99,0.000129,2]
[327956551,1716707432707,-1000.0,0.000129,2]
[327956552,1716707432716,-525.79037833,0.000129,2]
[327956553,1716707432726,-1725.29,0.000129,2]
[327956554,1716707432735,-321.5752457,0.000129,2]
[327956555,1716707432745,-3122.73,0.00012952,2]
[327956556,1716707432755,-3055.224914,0.00012986,2]
[327956557,1716707432765,-305.08514526,0.00012998,2]
[327956558,1716707432775,-686.67265106,0.00012998,2]
[327956559,1716707432784,-156.77330223,0.00012998,2]
[327956560,1716707432794,-226.51077942,0.00012998,2]
[327956561,1716707432804,-1273.86928001,0.00012998,2]
[327956562,1716707432814,-2187.63741095,0.00012998,2]
[327956563,1716707432824,-344.66778136,0.00012998,2]
[327956564,1716707432833,-2220.0136269,0.00012998,2]
[327956565,1716707432843,-254.66926552,0.00012998,2]
[327956566,1716707432853,-270.72824781,0.00012998,2]
[327956567,1716707432863,-645.66557881,0.00012998,2]
[327956568,1716707432873,-3721.66553585,0.00012999,2]
[327956569,1716707432883,-4432.22618101,0.00012999,2]
[327956570,1716707432892,-755.6187192,0.00012999,2]
[327956571,1716707432902,-207.5485086,0.00012999,2]
[327956572,1716707432912,-999.99,0.00012999,2]
[327956573,1716707432921,-499.99,0.00012999,2]
[327956574,1716707432931,-722.82,0.00012999,2]
[327956575,1716707432942,-277.3658757,0.00012999,2]
[327956576,1716707432952,-1180.1693692,0.00012999,2]
[327956577,1716707432962,-155.28365723,0.00012999,2]
[327956578,1716707432973,-259.00448085,0.00012999,2]
[327956579,1716707432983,-76200.80045663,0.00013,2]
[327956580,1716707438038,-2500.0,0.00012899,2]
[327956581,1716707438048,-209726.66110277,0.00013,2]
[327956582,1716707438058,-124909.09794184,0.00013,2]
[327956583,1716707438067,-4014.7,0.00013055,2]
[327956584,1716707438077,-156.52,0.00013158,2]
[327956586,1716707438441,-150.0,0.00013208,2]
[327956587,1716707438451,-200.0,0.00013475,2]
[327956588,1716707438465,-655.76,0.00013691,2]
[327956589,1716707438475,-1383.38,0.00013822,2]
[327956590,1716707438484,-174.37,0.00013878,2]
[327956591,1716707438493,-152.07,0.00013973,2]
[327956592,1716707438503,-155.64,0.00013973,2]
[327956593,1716707438512,-153.62,0.00013973,2]
[327956594,1716707438521,-1000.0,0.00014123,2]
[327956595,1716707438531,-170.95,0.00014133,2]
[327956596,1716707438541,-157.421544,0.00015342,2]
[327956597,1716707438551,-525.79037833,0.00015583,2]
[327956598,1716707438560,-3122.73,0.00015691,2]
[327956599,1716707438570,-1000.0,0.00015692,2]
[327956600,1716707438579,-321.57524563,0.00015957,2]
[327956601,1716707438589,-157.421544,0.00016164,2]
[327956602,1716707438598,-744.0,0.000162,2]
[327956603,1716707438608,-2487.0,0.000163,2]
[327956604,1716707438617,-157.421544,0.00016986,2]
[327956605,1716707438627,-1000.0,0.00017261,2]
[327956606,1716707438637,-157.421544,0.00017808,2]
[327956607,1716707438647,-804.42407721,0.00018,2]
[327956608,1716707438657,-525.79037833,0.00018266,2]
[327956609,1716707438666,-3122.73,0.00018431,2]
[327956610,1716707438675,-157.421544,0.0001863,2]
[327956611,1716707438685,-1000.0,0.0001883,2]
[327956612,1716707438694,-321.57524563,0.00019014,2]
[327956613,1716707438704,-157.421544,0.00019452,2]
[327956614,1716707438715,-1032.47294392,0.0002,4]
[327956615,1716707438725,-157.421544,0.00020274,2]
[327956616,1716707438735,-525.79037833,0.00020949,2]
[327956617,1716707438744,-1050.0,0.00021,2]
[327956618,1716707438754,-157.421544,0.00021096,2]
[327956619,1716707438768,-163.63,0.00021115,2]
[327956620,1716707438777,-167.63,0.00021129,2]
[327956621,1716707438787,-200.75,0.00021918,2]
[327956622,1716707438796,-250.0,0.00021918,2]
[327956623,1716707438806,-157.421544,0.00021918,2]
[327956624,1716707438815,-9161.51745053,0.00022,2]
[327956625,1716707438824,-321.57524563,0.00022071,2]
[327956626,1716707438834,-157.421544,0.0002274,2]
[327956627,1716707438844,-1100.0,0.00023,2]
[327956628,1716707438853,-152.07,0.00023435,2]
[327956629,1716707438863,-444.281,0.00023453,2]
[327956630,1716707438872,-326.369,0.00023453,2]
[327956631,1716707438881,-525.79037833,0.00023631,2]
[327956632,1716707438890,-150.07486744,0.00023757,2]
[327956633,1716707438900,-800.0,0.00023781,2]
[327956634,1716707438909,-180.0,0.0002423,2]
[327956635,1716707438919,-800.0,0.00024603,2]
[327956636,1716707438933,-166.66666667,0.00024788,2]
[327956637,1716707438943,-12883.15364731,0.00024878,2]
[327956638,1716707438951,-133687.24506306,0.0002488,2]
[327956639,1716707438961,-577.56475548,0.00024889,2]